[Event "Titled Tuesday Blitz July 05 Early 2022"]
[White "Franca, Ricardo Bedin"]
[Black "Barp, Alberto"]
[WhiteFideId "2107066"]
[BlackFideId "872555"]
[WhiteElo "2545"]
[BlackElo "2229"]
[Result "0-1"]
[Round "09"]
[TimeControl "180+1"]
[Date "2022.07.05"]
[WhiteClock "0:00:09"]
[BlackClock "0:00:21"]

1. e4 {[%clk 0:02:59]}  c6 {[%clk 0:02:56]} 2. d4 {[%clk 0:02:58]}  d5 {[%clk 0:02:57]} 3. Nd2 {[%clk 0:02:58]}  dxe4 {[%clk 0:02:55]} 4. Nxe4 {[%clk 0:02:58]}  g6 {[%clk 0:02:55]} 5. c3 {[%clk 0:02:51]}  Bg7 {[%clk 0:02:55]} 6. h4 {[%clk 0:02:51]}  h6 {[%clk 0:02:51]} 7. h5 {[%clk 0:02:45]}  g5 {[%clk 0:02:50]} 8. f4 {[%clk 0:02:45]}  g4 {[%clk 0:02:37]} 9. g3 {[%clk 0:02:33]}  Be6 {[%clk 0:02:23]} 10. Nf2 {[%clk 0:02:15]}  f5 {[%clk 0:02:14]} 11. Bg2 {[%clk 0:02:13]}  Bd5 {[%clk 0:02:11]} 12. Bxd5 {[%clk 0:02:08]}  cxd5 {[%clk 0:02:03]} 13. Qb3 {[%clk 0:02:04]}  Qd7 {[%clk 0:02:03]} 14. Nd3 {[%clk 0:02:02]}  b6 {[%clk 0:01:56]} 15. Ne5 {[%clk 0:01:55]}  Bxe5 {[%clk 0:01:55]} 16. dxe5 {[%clk 0:01:56]}  e6 {[%clk 0:01:53]} 17. Ne2 {[%clk 0:01:55]}  Ne7 {[%clk 0:01:50]} 18. Be3 {[%clk 0:01:53]}  Nbc6 {[%clk 0:01:49]} 19. Nd4 {[%clk 0:01:51]}  Nxd4 {[%clk 0:01:48]} 20. Bxd4 {[%clk 0:01:51]}  Nc6 {[%clk 0:01:47]} 21. O-O-O {[%clk 0:01:51]}  Rc8 {[%clk 0:01:45]} 22. Kb1 {[%clk 0:01:47]}  Kf7 {[%clk 0:01:43]} 23. Qa4 {[%clk 0:01:41]}  Rhd8 {[%clk 0:01:43]} 24. Bf2 {[%clk 0:01:34]}  Nxe5 {[%clk 0:01:37]} 25. Qc2 {[%clk 0:01:18]}  Nf3 {[%clk 0:01:35]} 26. Qe2 {[%clk 0:01:08]}  Qa4 {[%clk 0:01:29]} 27. Rd3 {[%clk 0:00:57]}  Qe4 {[%clk 0:01:26]} 28. Qc2 {[%clk 0:00:57]}  Ne5 {[%clk 0:01:11]} 29. fxe5 {[%clk 0:00:52]}  Qxh1+ {[%clk 0:01:10]} 30. Rd1 {[%clk 0:00:51]}  Qe4 {[%clk 0:01:10]} 31. Rd3 {[%clk 0:00:50]}  Kg7 {[%clk 0:00:59]} 32. Bd4 {[%clk 0:00:45]}  Qh1+ {[%clk 0:00:54]} 33. Rd1 {[%clk 0:00:44]}  Qxh5 {[%clk 0:00:53]} 34. Qg2 {[%clk 0:00:37]}  Qh3 {[%clk 0:00:52]} 35. Qf2 {[%clk 0:00:36]}  Rf8 {[%clk 0:00:49]} 36. Be3 {[%clk 0:00:35]}  Rc4 {[%clk 0:00:41]} 37. Bf4 {[%clk 0:00:34]}  Re4 {[%clk 0:00:36]} 38. Rg1 {[%clk 0:00:31]}  Qh5 {[%clk 0:00:33]} 39. Qg2 {[%clk 0:00:26]}  Qg6 {[%clk 0:00:31]} 40. Rh1 {[%clk 0:00:24]}  Rh8 {[%clk 0:00:27]} 41. Qf1 {[%clk 0:00:19]}  h5 {[%clk 0:00:26]} 42. Qb5 {[%clk 0:00:18]}  h4 {[%clk 0:00:25]} 43. Rf1 {[%clk 0:00:10]}  hxg3 {[%clk 0:00:24]} 44. Bxg3 {[%clk 0:00:11]}  f4 {[%clk 0:00:23]} 45. Qd7+ {[%clk 0:00:09]}  Qf7 {[%clk 0:00:24]} 46. Qxf7+ {[%clk 0:00:09]}  Kxf7 {[%clk 0:00:25]} 47. Bxf4 {[%clk 0:00:10]}  Kg6 {[%clk 0:00:24]} 48. Bg3 {[%clk 0:00:10]}  Rh3 {[%clk 0:00:23]} 49. Rf6+ {[%clk 0:00:10]}  Kg5 {[%clk 0:00:22]} 50. Bf2 {[%clk 0:00:09]}  Rf3 {[%clk 0:00:21]} 0-1


[Site "https://www.chess.com"]

[Event "Titled Tuesday Blitz July 05 Early 2022"]
[White "Golubovskis, Maksims"]
[Black "Guz, Ari"]
[WhiteFideId "11608528"]
[BlackFideId "2825759"]
[WhiteElo "2163"]
[BlackElo "1913"]
[Result "0-1"]
[Round "09"]
[TimeControl "180+1"]
[Date "2022.07.05"]
[WhiteClock "0:00:02"]
[BlackClock "0:00:56"]

1. e4 {[%clk 0:03:00]}  c5 {[%clk 0:02:57]} 2. Nf3 {[%clk 0:03:00]}  e6 {[%clk 0:02:58]} 3. d4 {[%clk 0:02:59]}  cxd4 {[%clk 0:02:59]} 4. Nxd4 {[%clk 0:03:00]}  a6 {[%clk 0:02:59]} 5. c4 {[%clk 0:03:00]}  Nf6 {[%clk 0:02:58]} 6. Nc3 {[%clk 0:03:00]}  Qc7 {[%clk 0:02:57]} 7. a3 {[%clk 0:03:00]}  Be7 {[%clk 0:02:52]} 8. Be2 {[%clk 0:03:00]}  O-O {[%clk 0:02:53]} 9. O-O {[%clk 0:03:00]}  d6 {[%clk 0:02:54]} 10. Be3 {[%clk 0:03:00]}  b6 {[%clk 0:02:54]} 11. Rc1 {[%clk 0:03:00]}  Bb7 {[%clk 0:02:54]} 12. f3 {[%clk 0:03:00]}  Nbd7 {[%clk 0:02:54]} 13. b4 {[%clk 0:02:59]}  Rac8 {[%clk 0:02:54]} 14. Qd2 {[%clk 0:02:57]}  Qb8 {[%clk 0:02:53]} 15. Rfd1 {[%clk 0:02:58]}  Bd8 {[%clk 0:02:53]} 16. Nc2 {[%clk 0:02:50]}  Bc7 {[%clk 0:02:50]} 17. Bf4 {[%clk 0:02:48]}  Ne5 {[%clk 0:02:29]} 18. Ne3 {[%clk 0:02:32]}  d5 {[%clk 0:02:18]} 19. exd5 {[%clk 0:02:08]}  Nxf3+ {[%clk 0:02:17]} 20. Bxf3 {[%clk 0:02:07]}  Bxf4 {[%clk 0:02:18]} 21. dxe6 {[%clk 0:01:59]}  Bxh2+ {[%clk 0:02:06]} 22. Kh1 {[%clk 0:01:58]}  Bxf3 {[%clk 0:02:06]} 23. gxf3 {[%clk 0:01:52]}  Bf4 {[%clk 0:02:06]} 24. Ncd5 {[%clk 0:01:22]}  Nxd5 {[%clk 0:01:57]} 25. cxd5 {[%clk 0:01:23]}  Qe5 {[%clk 0:01:53]} 26. exf7+ {[%clk 0:00:59]}  Kxf7 {[%clk 0:01:53]} 27. Rxc8 {[%clk 0:00:57]}  Rxc8 {[%clk 0:01:52]} 28. Re1 {[%clk 0:00:53]}  Re8 {[%clk 0:01:53]} 29. d6 {[%clk 0:00:16]}  Qh5+ {[%clk 0:01:26]} 30. Kg1 {[%clk 0:00:14]}  Qg5+ {[%clk 0:01:24]} 31. Kf1 {[%clk 0:00:05]}  Bxe3 {[%clk 0:01:23]} 32. Rxe3 {[%clk 0:00:02]}  Qxe3 {[%clk 0:01:20]} 33. Qd5+ {[%clk 0:00:03]}  Qe6 {[%clk 0:01:20]} 34. Qb7+ {[%clk 0:00:01]}  Kg6 {[%clk 0:01:20]} 35. d7 {[%clk 0:00:01]}  Qe1+ {[%clk 0:01:05]} 36. Kg2 {[%clk 0:00:01]}  Re2+ {[%clk 0:01:06]} 37. Kh3 {[%clk 0:00:02]}  Qh1+ {[%clk 0:00:59]} 38. Kg4 {[%clk 0:00:02]}  Qh5+ {[%clk 0:01:00]} 39. Kf4 {[%clk 0:00:02]}  Qf5+ {[%clk 0:01:00]} 40. Kg3 {[%clk 0:00:02]}  Qe5+ {[%clk 0:00:56]} 41. Kh3 {[%clk 0:00:02]}  Rh2+ {[%clk 0:00:55]} 42. Kg4 {[%clk 0:00:02]}  h5# {[%clk 0:00:56]} 0-1


[Site "https://www.chess.com"]

[Event "Titled Tuesday Blitz July 05 Early 2022"]
[White "Hansen, Eric"]
[Black "Navarrete Mendez, Gonzalo Alberto"]
[WhiteFideId "2606771"]
[BlackFideId "5106850"]
[WhiteElo "2568"]
[BlackElo "2261"]
[Result "1-0"]
[Round "09"]
[TimeControl "180+1"]
[Date "2022.07.05"]
[WhiteClock "0:00:52"]
[BlackClock "0:00:05"]

1. e4 {[%clk 0:03:00]}  e5 {[%clk 0:03:00]} 2. Nf3 {[%clk 0:03:01]}  Nc6 {[%clk 0:03:00]} 3. Bb5 {[%clk 0:03:01]}  a6 {[%clk 0:02:59]} 4. Ba4 {[%clk 0:03:02]}  d6 {[%clk 0:03:00]} 5. O-O {[%clk 0:03:02]}  Bd7 {[%clk 0:02:59]} 6. c4 {[%clk 0:03:02]}  Nge7 {[%clk 0:02:58]} 7. Nc3 {[%clk 0:03:03]}  Ng6 {[%clk 0:02:58]} 8. Bxc6 {[%clk 0:03:01]}  bxc6 {[%clk 0:02:58]} 9. d4 {[%clk 0:03:02]}  Be7 {[%clk 0:02:56]} 10. h3 {[%clk 0:03:01]}  O-O {[%clk 0:02:53]} 11. Be3 {[%clk 0:03:02]}  Qc8 {[%clk 0:02:51]} 12. Kh2 {[%clk 0:02:58]}  f5 {[%clk 0:02:50]} 13. exf5 {[%clk 0:02:58]}  Bxf5 {[%clk 0:02:51]} 14. dxe5 {[%clk 0:02:54]}  dxe5 {[%clk 0:02:42]} 15. Nd2 {[%clk 0:02:54]}  Qe6 {[%clk 0:02:07]} 16. Nce4 {[%clk 0:02:25]}  Rad8 {[%clk 0:01:46]} 17. Qh5 {[%clk 0:02:03]}  Bxe4 {[%clk 0:01:26]} 18. Nxe4 {[%clk 0:02:03]}  Qxc4 {[%clk 0:01:27]} 19. Qg4 {[%clk 0:02:01]}  Nf4 {[%clk 0:01:16]} 20. f3 {[%clk 0:01:49]}  Kh8 {[%clk 0:01:07]} 21. b3 {[%clk 0:01:45]}  Qe2 {[%clk 0:00:59]} 22. Bxf4 {[%clk 0:01:44]}  exf4 {[%clk 0:01:00]} 23. Rf2 {[%clk 0:01:38]}  Qe3 {[%clk 0:00:56]} 24. Rc2 {[%clk 0:01:38]}  Bf6 {[%clk 0:00:50]} 25. Rac1 {[%clk 0:01:37]}  Bd4 {[%clk 0:00:38]} 26. Rxc6 {[%clk 0:01:32]}  Bb6 {[%clk 0:00:38]} 27. Qh5 {[%clk 0:01:23]}  Rd7 {[%clk 0:00:11]} 28. Ng5 {[%clk 0:01:05]}  g6 {[%clk 0:00:08]} 29. Qh6 {[%clk 0:01:06]}  Rg7 {[%clk 0:00:08]} 30. Rxg6 {[%clk 0:01:01]}  Rfg8 {[%clk 0:00:06]} 31. Rxg7 {[%clk 0:00:51]}  Rxg7 {[%clk 0:00:07]} 32. Qf6 {[%clk 0:00:51]}  Qxc1 {[%clk 0:00:06]} 33. Qf8+ {[%clk 0:00:51]}  Rg8 {[%clk 0:00:05]} 34. Nf7# {[%clk 0:00:52]} 1-0


[Site "https://www.chess.com"]

[Event "Titled Tuesday Blitz July 05 Early 2022"]
[White "Harvey, Marcus R"]
[Black "Corrales Jimenez, Fidel"]
[WhiteFideId "400092"]
[BlackFideId "3506690"]
[WhiteElo "2485"]
[BlackElo "2541"]
[Result "1-0"]
[Round "09"]
[TimeControl "180+1"]
[Date "2022.07.05"]
[WhiteClock "0:00:23"]
[BlackClock "0:00:18"]

1. d4 {[%clk 0:02:59]}  Nf6 {[%clk 0:03:00]} 2. c4 {[%clk 0:02:59]}  g6 {[%clk 0:03:00]} 3. g3 {[%clk 0:02:59]}  Bg7 {[%clk 0:03:00]} 4. Bg2 {[%clk 0:02:59]}  d5 {[%clk 0:03:01]} 5. cxd5 {[%clk 0:02:59]}  Nxd5 {[%clk 0:03:02]} 6. e4 {[%clk 0:02:55]}  Nb6 {[%clk 0:03:02]} 7. Ne2 {[%clk 0:02:55]}  O-O {[%clk 0:03:02]} 8. Nbc3 {[%clk 0:02:40]}  e5 {[%clk 0:03:01]} 9. d5 {[%clk 0:02:39]}  c6 {[%clk 0:03:01]} 10. O-O {[%clk 0:01:52]}  cxd5 {[%clk 0:03:01]} 11. exd5 {[%clk 0:01:53]}  Na6 {[%clk 0:02:57]} 12. b3 {[%clk 0:01:16]}  f5 {[%clk 0:02:56]} 13. Ba3 {[%clk 0:01:16]}  Re8 {[%clk 0:02:53]} 14. Rc1 {[%clk 0:01:15]}  Bd7 {[%clk 0:02:23]} 15. Qd2 {[%clk 0:01:15]}  Rc8 {[%clk 0:02:17]} 16. Rc2 {[%clk 0:01:14]}  Qf6 {[%clk 0:02:00]} 17. Rfc1 {[%clk 0:01:13]}  e4 {[%clk 0:01:48]} 18. Bb2 {[%clk 0:01:07]}  Qd6 {[%clk 0:01:38]} 19. Nd4 {[%clk 0:00:55]}  Nxd5 {[%clk 0:00:50]} 20. Nxf5 {[%clk 0:00:47]}  Bxf5 {[%clk 0:00:47]} 21. Qxd5+ {[%clk 0:00:22]}  Qxd5 {[%clk 0:00:38]} 22. Nxd5 {[%clk 0:00:23]}  Rxc2 {[%clk 0:00:28]} 23. Rxc2 {[%clk 0:00:22]}  Bxb2 {[%clk 0:00:24]} 24. Rxb2 {[%clk 0:00:22]}  Rd8 {[%clk 0:00:24]} 25. Ne3 {[%clk 0:00:21]}  Nb4 {[%clk 0:00:24]} 26. g4 {[%clk 0:00:19]}  Be6 {[%clk 0:00:16]} 27. Bxe4 {[%clk 0:00:19]}  Rd4 {[%clk 0:00:16]} 28. Bxb7 {[%clk 0:00:14]}  Bxg4 {[%clk 0:00:15]} 29. a3 {[%clk 0:00:14]}  Nd3 {[%clk 0:00:07]} 30. Rd2 {[%clk 0:00:15]}  Be6 {[%clk 0:00:06]} 31. b4 {[%clk 0:00:09]}  Nf4 {[%clk 0:00:03]} 32. Rxd4 {[%clk 0:00:06]}  Ne2+ {[%clk 0:00:04]} 33. Kf1 {[%clk 0:00:06]}  Nxd4 {[%clk 0:00:05]} 34. Ke1 {[%clk 0:00:06]}  Kf7 {[%clk 0:00:05]} 35. Kd2 {[%clk 0:00:06]}  Kf6 {[%clk 0:00:05]} 36. Kd3 {[%clk 0:00:05]}  Ke5 {[%clk 0:00:06]} 37. Bg2 {[%clk 0:00:03]}  Nb5 {[%clk 0:00:03]} 38. a4 {[%clk 0:00:03]}  Nd6 {[%clk 0:00:04]} 39. a5 {[%clk 0:00:03]}  Kf4 {[%clk 0:00:04]} 40. Kd4 {[%clk 0:00:04]}  Nb5+ {[%clk 0:00:01]} 41. Kc5 {[%clk 0:00:04]}  Nc3 {[%clk 0:00:02]} 42. b5 {[%clk 0:00:04]}  g5 {[%clk 0:00:02]} 43. b6 {[%clk 0:00:04]}  axb6+ {[%clk 0:00:03]} 44. axb6 {[%clk 0:00:05]}  Na4+ {[%clk 0:00:02]} 45. Kb5 {[%clk 0:00:05]}  Bd7+ {[%clk 0:00:02]} 46. Ka6 {[%clk 0:00:04]}  Nxb6 {[%clk 0:00:02]} 47. Kxb6 {[%clk 0:00:05]}  g4 {[%clk 0:00:02]} 48. Kc5 {[%clk 0:00:05]}  h5 {[%clk 0:00:02]} 49. Kd4 {[%clk 0:00:06]}  h4 {[%clk 0:00:02]} 50. Nf1 {[%clk 0:00:06]}  Be6 {[%clk 0:00:02]} 51. Nd2 {[%clk 0:00:04]}  Bc8 {[%clk 0:00:03]} 52. Ne4 {[%clk 0:00:03]}  Bf5 {[%clk 0:00:03]} 53. Nc5 {[%clk 0:00:03]}  Bg6 {[%clk 0:00:04]} 54. Nd3+ {[%clk 0:00:03]}  Kg5 {[%clk 0:00:04]} 55. Ne5 {[%clk 0:00:04]}  Bf5 {[%clk 0:00:04]} 56. Ke3 {[%clk 0:00:05]}  Kf6 {[%clk 0:00:04]} 57. Nd3 {[%clk 0:00:05]}  Kg5 {[%clk 0:00:04]} 58. Nf4 {[%clk 0:00:06]}  Bc8 {[%clk 0:00:05]} 59. Be4 {[%clk 0:00:06]}  Bd7 {[%clk 0:00:04]} 60. Bd5 {[%clk 0:00:06]}  Bf5 {[%clk 0:00:04]} 61. Be6 {[%clk 0:00:07]}  Bh7 {[%clk 0:00:04]} 62. Bc8 {[%clk 0:00:07]}  Bg8 {[%clk 0:00:04]} 63. Ne6+ {[%clk 0:00:07]}  Kf6 {[%clk 0:00:04]} 64. Nd4 {[%clk 0:00:08]}  Kg5 {[%clk 0:00:05]} 65. Ne2 {[%clk 0:00:08]}  Bd5 {[%clk 0:00:05]} 66. Nc3 {[%clk 0:00:08]}  Bf7 {[%clk 0:00:05]} 67. Ne4+ {[%clk 0:00:09]}  Kh5 {[%clk 0:00:06]} 68. Kf4 {[%clk 0:00:09]}  g3 {[%clk 0:00:05]} 69. fxg3 {[%clk 0:00:10]}  hxg3 {[%clk 0:00:06]} 70. hxg3 {[%clk 0:00:10]}  Bg6 {[%clk 0:00:06]} 71. g4+ {[%clk 0:00:11]}  Kh6 {[%clk 0:00:06]} 72. Bf5 {[%clk 0:00:11]}  Bf7 {[%clk 0:00:07]} 73. g5+ {[%clk 0:00:12]}  Kg7 {[%clk 0:00:07]} 74. Nf6 {[%clk 0:00:12]}  Ba2 {[%clk 0:00:07]} 75. Be4 {[%clk 0:00:12]}  Bf7 {[%clk 0:00:05]} 76. Bf3 {[%clk 0:00:13]}  Be6 {[%clk 0:00:06]} 77. Nh5+ {[%clk 0:00:13]}  Kg6 {[%clk 0:00:05]} 78. Bg4 {[%clk 0:00:13]}  Bb3 {[%clk 0:00:04]} 79. Nf6 {[%clk 0:00:13]}  Bc2 {[%clk 0:00:04]} 80. Bh5+ {[%clk 0:00:13]}  Kg7 {[%clk 0:00:04]} 81. Be8 {[%clk 0:00:13]}  Bb1 {[%clk 0:00:05]} 82. Nh5+ {[%clk 0:00:14]}  Kf8 {[%clk 0:00:04]} 83. Bc6 {[%clk 0:00:14]}  Kf7 {[%clk 0:00:05]} 84. Bf3 {[%clk 0:00:13]}  Bc2 {[%clk 0:00:05]} 85. Ke5 {[%clk 0:00:12]}  Kg6 {[%clk 0:00:05]} 86. Kf4 {[%clk 0:00:13]}  Kf7 {[%clk 0:00:06]} 87. Kg3 {[%clk 0:00:13]}  Kg6 {[%clk 0:00:06]} 88. Kh4 {[%clk 0:00:13]}  Kf5 {[%clk 0:00:06]} 89. Ng3+ {[%clk 0:00:13]}  Kf4 {[%clk 0:00:06]} 90. Bh5 {[%clk 0:00:13]}  Bd3 {[%clk 0:00:05]} 91. Bf7 {[%clk 0:00:13]}  Ke5 {[%clk 0:00:05]} 92. g6 {[%clk 0:00:13]}  Kf6 {[%clk 0:00:05]} 93. Nh5+ {[%clk 0:00:14]}  Ke7 {[%clk 0:00:05]} 94. Kg5 {[%clk 0:00:13]}  Kf8 {[%clk 0:00:05]} 95. Kf6 {[%clk 0:00:12]}  Bxg6 {[%clk 0:00:06]} 96. Bxg6 {[%clk 0:00:13]}  Kg8 {[%clk 0:00:06]} 97. Nf4 {[%clk 0:00:13]}  Kh8 {[%clk 0:00:07]} 98. Nh3 {[%clk 0:00:12]}  Kg8 {[%clk 0:00:07]} 99. Ng5 {[%clk 0:00:12]}  Kh8 {[%clk 0:00:08]} 100. Nf7+ {[%clk 0:00:12]}  Kg8 {[%clk 0:00:09]} 101. Bf5 {[%clk 0:00:13]}  Kf8 {[%clk 0:00:09]} 102. Bh7 {[%clk 0:00:14]}  Ke8 {[%clk 0:00:10]} 103. Ne5 {[%clk 0:00:15]}  Kf8 {[%clk 0:00:11]} 104. Nd7+ {[%clk 0:00:15]}  Ke8 {[%clk 0:00:11]} 105. Ke6 {[%clk 0:00:15]}  Kd8 {[%clk 0:00:12]} 106. Kd6 {[%clk 0:00:16]}  Ke8 {[%clk 0:00:12]} 107. Bg6+ {[%clk 0:00:16]}  Kd8 {[%clk 0:00:13]} 108. Bf7 {[%clk 0:00:17]}  Kc8 {[%clk 0:00:13]} 109. Nc5 {[%clk 0:00:17]}  Kd8 {[%clk 0:00:14]} 110. Nb7+ {[%clk 0:00:18]}  Kc8 {[%clk 0:00:15]} 111. Kc6 {[%clk 0:00:18]}  Kb8 {[%clk 0:00:15]} 112. Kb6 {[%clk 0:00:19]}  Kc8 {[%clk 0:00:15]} 113. Be6+ {[%clk 0:00:20]}  Kb8 {[%clk 0:00:16]} 114. Bd7 {[%clk 0:00:20]}  Ka8 {[%clk 0:00:16]} 115. Nc5 {[%clk 0:00:21]}  Kb8 {[%clk 0:00:17]} 116. Na6+ {[%clk 0:00:22]}  Ka8 {[%clk 0:00:18]} 117. Bc6# {[%clk 0:00:23]} 1-0


[Site "https://www.chess.com"]

[Event "Titled Tuesday Blitz July 05 Early 2022"]
[White "Jubin Jimmy"]
[Black "Aloma Vidal, Robert"]
[WhiteFideId "46686614"]
[BlackFideId "2260409"]
[WhiteElo "2219"]
[BlackElo "2435"]
[Result "1-0"]
[Round "09"]
[TimeControl "180+1"]
[Date "2022.07.05"]
[WhiteClock "0:00:13"]
[BlackClock "0:00:01"]

1. d4 {[%clk 0:03:00]}  d5 {[%clk 0:02:53]} 2. c4 {[%clk 0:03:00]}  c6 {[%clk 0:02:53]} 3. Nc3 {[%clk 0:03:00]}  Nf6 {[%clk 0:02:53]} 4. Nf3 {[%clk 0:03:00]}  e6 {[%clk 0:02:52]} 5. Bg5 {[%clk 0:03:00]}  Nbd7 {[%clk 0:02:53]} 6. e3 {[%clk 0:03:00]}  h6 {[%clk 0:02:54]} 7. Bh4 {[%clk 0:02:59]}  g5 {[%clk 0:02:54]} 8. Bg3 {[%clk 0:02:59]}  Nh5 {[%clk 0:02:55]} 9. Be2 {[%clk 0:02:47]}  Nxg3 {[%clk 0:02:51]} 10. hxg3 {[%clk 0:02:48]}  Bg7 {[%clk 0:02:51]} 11. a3 {[%clk 0:02:43]}  O-O {[%clk 0:02:42]} 12. Qc2 {[%clk 0:02:42]}  b5 {[%clk 0:02:15]} 13. cxb5 {[%clk 0:02:36]}  c5 {[%clk 0:02:14]} 14. Rd1 {[%clk 0:02:22]}  Bb7 {[%clk 0:01:59]} 15. dxc5 {[%clk 0:01:52]}  Nxc5 {[%clk 0:01:59]} 16. O-O {[%clk 0:01:42]}  Rc8 {[%clk 0:01:21]} 17. Qd2 {[%clk 0:01:38]}  Nb3 {[%clk 0:01:02]} 18. Qc2 {[%clk 0:01:26]}  Na5 {[%clk 0:01:01]} 19. Nd4 {[%clk 0:01:21]}  Nc4 {[%clk 0:01:01]} 20. Bxc4 {[%clk 0:01:07]}  Rxc4 {[%clk 0:01:01]} 21. Qb3 {[%clk 0:01:04]}  Qa5 {[%clk 0:00:58]} 22. Rd2 {[%clk 0:01:02]}  Rfc8 {[%clk 0:00:55]} 23. Rfd1 {[%clk 0:01:02]}  h5 {[%clk 0:00:36]} 24. Nce2 {[%clk 0:00:52]}  h4 {[%clk 0:00:33]} 25. gxh4 {[%clk 0:00:51]}  gxh4 {[%clk 0:00:34]} 26. Qd3 {[%clk 0:00:44]}  Qd8 {[%clk 0:00:24]} 27. Nc6 {[%clk 0:00:41]}  Bxc6 {[%clk 0:00:21]} 28. Qxc4 {[%clk 0:00:40]}  Bd7 {[%clk 0:00:14]} 29. Qb4 {[%clk 0:00:35]}  Qg5 {[%clk 0:00:13]} 30. Nf4 {[%clk 0:00:31]}  Rc4 {[%clk 0:00:11]} 31. Qd6 {[%clk 0:00:29]}  Be8 {[%clk 0:00:09]} 32. Qb8 {[%clk 0:00:26]}  Qe7 {[%clk 0:00:08]} 33. b3 {[%clk 0:00:20]}  Rc3 {[%clk 0:00:06]} 34. Rd3 {[%clk 0:00:19]}  Rc2 {[%clk 0:00:05]} 35. Nh5 {[%clk 0:00:17]}  Bh8 {[%clk 0:00:03]} 36. e4 {[%clk 0:00:15]}  Kh7 {[%clk 0:00:01]} 37. exd5 {[%clk 0:00:13]} 1-0


[Site "https://www.chess.com"]

[Event "Titled Tuesday Blitz July 05 Early 2022"]
[White "Khripachenko, Alexander"]
[Black "Maximov, Dmitry"]
[WhiteFideId "54184975"]
[BlackFideId "14105659"]
[WhiteElo "2147"]
[BlackElo "2494"]
[Result "0-1"]
[Round "09"]
[TimeControl "180+1"]
[Date "2022.07.05"]
[WhiteClock "0:00:07"]
[BlackClock "0:00:17"]

1. e4 {[%clk 0:02:58]}  c5 {[%clk 0:02:59]} 2. Nf3 {[%clk 0:02:58]}  d6 {[%clk 0:02:59]} 3. d4 {[%clk 0:02:59]}  cxd4 {[%clk 0:03:00]} 4. Nxd4 {[%clk 0:03:00]}  Nf6 {[%clk 0:03:00]} 5. f3 {[%clk 0:03:00]}  e6 {[%clk 0:02:59]} 6. c4 {[%clk 0:03:00]}  Nc6 {[%clk 0:03:00]} 7. Nc3 {[%clk 0:03:01]}  Be7 {[%clk 0:02:57]} 8. Be3 {[%clk 0:03:01]}  O-O {[%clk 0:02:58]} 9. Be2 {[%clk 0:03:01]}  d5 {[%clk 0:02:57]} 10. exd5 {[%clk 0:02:53]}  exd5 {[%clk 0:02:58]} 11. Nxc6 {[%clk 0:02:50]}  bxc6 {[%clk 0:02:58]} 12. cxd5 {[%clk 0:02:51]}  Nxd5 {[%clk 0:02:58]} 13. Nxd5 {[%clk 0:02:51]}  cxd5 {[%clk 0:02:58]} 14. O-O {[%clk 0:02:51]}  Bf6 {[%clk 0:02:56]} 15. Bd4 {[%clk 0:02:50]}  Be6 {[%clk 0:02:34]} 16. Qd2 {[%clk 0:02:48]}  Rb8 {[%clk 0:02:32]} 17. Rfd1 {[%clk 0:02:38]}  Re8 {[%clk 0:02:30]} 18. b3 {[%clk 0:02:32]}  Bf5 {[%clk 0:02:03]} 19. Bf1 {[%clk 0:02:27]}  Bg5 {[%clk 0:01:44]} 20. Qf2 {[%clk 0:02:11]}  a5 {[%clk 0:01:42]} 21. Bd3 {[%clk 0:02:09]}  Bg6 {[%clk 0:01:35]} 22. Bxg6 {[%clk 0:02:08]}  hxg6 {[%clk 0:01:35]} 23. Rd3 {[%clk 0:02:07]}  Qd7 {[%clk 0:01:29]} 24. Rad1 {[%clk 0:02:06]}  a4 {[%clk 0:01:29]} 25. Ba7 {[%clk 0:01:17]}  Ra8 {[%clk 0:01:25]} 26. Bc5 {[%clk 0:01:17]}  axb3 {[%clk 0:01:24]} 27. axb3 {[%clk 0:01:18]}  Qb5 {[%clk 0:01:16]} 28. b4 {[%clk 0:01:15]}  Qc4 {[%clk 0:01:01]} 29. Rd4 {[%clk 0:01:06]}  Qb3 {[%clk 0:00:48]} 30. R4d3 {[%clk 0:01:05]}  Qc4 {[%clk 0:00:46]} 31. Rd4 {[%clk 0:01:03]}  Qa6 {[%clk 0:00:38]} 32. Rxd5 {[%clk 0:00:58]}  Re2 {[%clk 0:00:37]} 33. Qg3 {[%clk 0:00:49]}  Bh6 {[%clk 0:00:35]} 34. Rd8+ {[%clk 0:00:27]}  Rxd8 {[%clk 0:00:35]} 35. Rxd8+ {[%clk 0:00:28]}  Kh7 {[%clk 0:00:35]} 36. Rd1 {[%clk 0:00:26]}  Qa4 {[%clk 0:00:33]} 37. Rf1 {[%clk 0:00:24]}  Qc2 {[%clk 0:00:30]} 38. h4 {[%clk 0:00:17]}  Qd2 {[%clk 0:00:21]} 39. Bf2 {[%clk 0:00:07]}  Bf4 {[%clk 0:00:20]} 40. Qg4 {[%clk 0:00:08]}  f5 {[%clk 0:00:19]} 41. Qh3 {[%clk 0:00:08]}  Rxf2 {[%clk 0:00:19]} 42. Rxf2 {[%clk 0:00:07]}  Be3 {[%clk 0:00:17]} 0-1


[Site "https://www.chess.com"]

[Event "Titled Tuesday Blitz July 05 Early 2022"]
[White "Koridze, Lile"]
[Black "Garcia Ramos, Daniel"]
[WhiteFideId "13612514"]
[BlackFideId "32010311"]
[WhiteElo "2050"]
[BlackElo "2268"]
[Result "0-1"]
[Round "09"]
[TimeControl "180+1"]
[Date "2022.07.05"]
[WhiteClock "0:01:19"]
[BlackClock "0:01:19"]

1. d4 {[%clk 0:03:00]}  d5 {[%clk 0:02:54]} 2. c4 {[%clk 0:03:01]}  e6 {[%clk 0:02:53]} 3. Nf3 {[%clk 0:03:00]}  Nf6 {[%clk 0:02:54]} 4. g3 {[%clk 0:03:00]}  Bb4+ {[%clk 0:02:53]} 5. Bd2 {[%clk 0:03:00]}  a5 {[%clk 0:02:53]} 6. Bg2 {[%clk 0:02:59]}  O-O {[%clk 0:02:54]} 7. O-O {[%clk 0:03:00]}  dxc4 {[%clk 0:02:54]} 8. Ne5 {[%clk 0:03:00]}  Qxd4 {[%clk 0:02:53]} 9. Bxb4 {[%clk 0:02:57]}  Qxd1 {[%clk 0:02:52]} 10. Rxd1 {[%clk 0:02:57]}  axb4 {[%clk 0:02:52]} 11. Nxc4 {[%clk 0:02:57]}  Nbd7 {[%clk 0:02:45]} 12. Nbd2 {[%clk 0:02:53]}  Ra7 {[%clk 0:02:32]} 13. Nb3 {[%clk 0:02:52]}  c5 {[%clk 0:02:21]} 14. a4 {[%clk 0:02:31]}  bxa3 {[%clk 0:02:05]} 15. Nxa3 {[%clk 0:02:29]}  b6 {[%clk 0:02:00]} 16. Nb5 {[%clk 0:02:26]}  Rxa1 {[%clk 0:01:53]} 17. Rxa1 {[%clk 0:02:26]}  Ne5 {[%clk 0:01:54]} 18. Nd6 {[%clk 0:01:46]}  g5 {[%clk 0:01:38]} 19. f4 {[%clk 0:01:40]}  gxf4 {[%clk 0:01:35]} 20. gxf4 {[%clk 0:01:41]}  Neg4 {[%clk 0:01:33]} 21. Ra8 {[%clk 0:01:22]}  Bd7 {[%clk 0:01:33]} 22. Ra6 {[%clk 0:01:22]}  Rb8 {[%clk 0:01:28]} 23. Nb7 {[%clk 0:01:21]}  Ne3 {[%clk 0:01:19]} 24. Rxb6 {[%clk 0:01:19]}  Nxg2 {[%clk 0:01:19]} 25. Kxg2 {[%clk 0:01:19]}  Rxb7 {[%clk 0:01:19]} 0-1


[Site "https://www.chess.com"]